fUSD/lending_fUSD_20240319
["ID","MTS","AMOUNT","RATE_DAILY","PERIOD"]
[319517013,1710816643324,-500.0,0.00054794,120]
[319517014,1710816643334,-500.0,0.00054794,120]
[319517015,1710816643343,-594.35,0.00054794,120]
[319517016,1710816643352,-500.0,0.00054794,120]
[319517017,1710816643362,-500.0,0.00054794,120]
[319517018,1710816643373,-500.0,0.00054794,120]
[319517019,1710816643385,-500.0,0.00054794,120]
[319517020,1710816643394,-782.04,0.00054794,120]
[319517021,1710816643404,-1340.65,0.00054794,120]
[319517022,1710816643413,-500.0,0.00054794,120]
[319517023,1710816643423,-2087.76,0.00054794,120]
[319517024,1710816643433,-393.4578122,0.00054794,120]
[319517025,1710816643442,-500.0,0.00054794,120]
[319517026,1710816643452,-500.0,0.00054794,120]
[319517027,1710816643461,-500.0,0.00054794,120]
[319517028,1710816643471,-500.0,0.00054794,120]
[319517029,1710816643481,-542.63,0.00054794,120]
[319517030,1710816643491,-500.0,0.00054794,120]
[319517031,1710816643500,-500.0,0.00054794,120]
[319517032,1710816643509,-500.0,0.00054794,120]
[319517033,1710816643519,-512.39,0.00054794,120]
[319517034,1710816643529,-500.0,0.00054794,120]
[319517035,1710816643538,-500.0,0.00054794,120]
[319517036,1710816643552,-500.0,0.00054794,120]
[319517037,1710816643562,-839.91,0.00054794,120]
[319517038,1710816643571,-337.46114187,0.00054794,120]
[319517039,1710816643582,-788.5,0.00054794,120]
[319517040,1710816643591,-500.0,0.00054794,120]
[319517041,1710816643602,-500.0,0.00054794,120]
[319517042,1710816643612,-500.0,0.00054794,120]
[319517043,1710816643624,-504.2520463,0.00054794,120]
[319517044,1710816643634,-876.51,0.00054794,120]
[319517045,1710816643644,-500.0,0.00054794,120]
[319517046,1710816643654,-500.0,0.00054794,120]
[319517047,1710816643663,-500.0,0.00054794,120]
[319517048,1710816643673,-500.0,0.00054794,120]
[319517049,1710816643682,-500.0,0.00054794,2]
[319517050,1710816643691,-500.0,0.00054794,120]
[319517051,1710816643701,-542.74,0.00054794,120]
[319517052,1710816643711,-1380.02,0.00054794,120]
[319517053,1710816643720,-907.71,0.00054794,120]
[319517054,1710816643729,-603.4,0.00054794,120]
[319517055,1710816643739,-500.0,0.00054794,120]
[319517056,1710816643750,-572.4,0.00054794,120]
[319517057,1710816643759,-500.0,0.00054794,120]
[319517058,1710816643768,-500.0,0.00054794,120]
[319517059,1710816643777,-500.0,0.00054794,120]
[319517060,1710816643786,-595.38184288,0.00054794,120]
[319517061,1710816643795,-500.0,0.00054794,120]
[319517062,1710816643805,-1928.63,0.00054794,120]
[319517063,1710816643814,-730.91,0.00054794,120]
[319517064,1710816643824,-500.0,0.00054794,120]
[319517065,1710816643833,-500.0,0.00054794,2]
[319517066,1710816643842,-612.98899166,0.00054794,120]
[319517067,1710816643852,-959.05,0.00054794,120]
[319517068,1710816643861,-500.0,0.00054794,120]
[319517069,1710816643871,-922.54,0.00054794,120]
[319517070,1710816643884,-500.0,0.00054794,120]
[319517071,1710816643893,-500.0,0.00054794,120]
[319517072,1710816643903,-500.0,0.00054794,120]
[319517073,1710816643913,-1081.52,0.00054794,120]
[319517074,1710816643922,-962.77,0.00054794,120]
[319517075,1710816643931,-500.0,0.00054794,120]
[319517076,1710816643941,-500.0,0.00054794,120]
[319517077,1710816643950,-500.0,0.00054794,120]
[319517078,1710816643959,-540.98811825,0.00054794,120]
[319517079,1710816643969,-522.08,0.00054794,120]
[319517080,1710816643978,-1421.95,0.00054794,120]
[319517082,1710816643987,-500.0,0.00054794,120]
[319517083,1710816643996,-500.0,0.00054794,120]
[319517084,1710816644006,-500.0,0.00054794,120]
[319517085,1710816644015,-496.90940511,0.00054794,120]
[319517087,1710816644023,-735.9,0.00054794,120]
[319517088,1710816644033,-500.0,0.00054794,120]
[319517089,1710816644042,-500.0,0.00054794,120]
[319517090,1710816644051,-500.0,0.00054794,120]
[319517091,1710816644060,-500.0,0.00054794,120]
[319517092,1710816644069,-500.0,0.00054794,120]
[319517093,1710816644078,-500.0,0.00054794,120]
[319517094,1710816644087,-643.11,0.00054794,120]
[319517095,1710816644098,-500.0,0.00054794,120]
[319517096,1710816644107,-500.0,0.00054794,120]
[319517097,1710816644117,-500.0,0.00054794,120]
[319517098,1710816644130,-1260.09,0.00054794,120]
[319517099,1710816644139,-500.0,0.00054794,120]
[319517100,1710816644148,-500.0,0.00054794,120]
[319517101,1710816644157,-500.0,0.00054794,120]
[319517102,1710816644166,-500.0,0.00054794,120]
[319517103,1710816644175,-966.04,0.00054794,120]
[319517104,1710816644185,-548.9,0.00054794,120]
[319517105,1710816644196,-500.0,0.00054794,120]
[319517106,1710816644206,-500.0,0.00054794,120]
[319517107,1710816644216,-899.33,0.00054794,120]
[319517108,1710816644226,-419.74035088,0.00054794,120]
[319517109,1710816644236,-500.0,0.00054794,120]
[319517110,1710816644245,-500.0,0.00054794,120]
[319517111,1710816644255,-500.0,0.00054794,120]
[319517112,1710816644265,-500.0,0.00054794,120]
[319517113,1710816644275,-500.0,0.00054794,120]
[319517114,1710816644285,-500.0,0.00054794,120]
[319517115,1710816644294,-500.0,0.00054794,120]
[319517116,1710816644304,-500.0,0.00054794,120]
[319517117,1710816644314,-389.08227359,0.00054794,120]
[319517118,1710816644324,-992.52,0.00054794,120]
[319517119,1710816644333,-500.0,0.00054794,120]
[319517120,1710816644343,-500.0,0.00054794,120]
[319517121,1710816644353,-757.12,0.00054794,120]
[319517122,1710816644363,-500.0,0.00054794,120]
[319517123,1710816644374,-500.0,0.00054794,120]
[319517124,1710816644387,-500.0,0.00054794,120]
[319517125,1710816644397,-500.0,0.00054794,120]
[319517126,1710816644407,-500.0,0.00054794,120]
[319517127,1710816644418,-279.16727864,0.00054794,120]
[319517128,1710816644729,-500.0,0.00054794,120]
[319517129,1710816644749,-500.0,0.00054794,120]
[319517130,1710816644759,-506.15202843,0.00054794,20]
[319517131,1710816644769,-500.0,0.00054794,120]
[319517132,1710816644778,-990.34,0.00054794,120]
[319517133,1710816644787,-500.0,0.00054794,120]
[319517134,1710816644797,-500.0,0.00054794,120]
[319517135,1710816644806,-500.0,0.00054794,120]
[319517136,1710816644815,-500.0,0.00054794,120]
[319517137,1710816644824,-500.0,0.00054794,120]
[319517138,1710816644833,-500.0,0.00054794,120]
[319517139,1710816644842,-500.0,0.00054794,120]
[319517140,1710816644851,-500.0,0.00054794,120]
[319517141,1710816644861,-500.0,0.00054794,120]
[319517142,1710816644870,-1520.95,0.00054794,120]
[319517143,1710816644885,-695.25,0.00054794,120]
[319517144,1710816644894,-500.0,0.00054794,120]
[319517145,1710816644903,-792.66,0.00054794,120]
[319517146,1710816644913,-500.0,0.00054794,120]
[319517147,1710816644922,-500.0,0.00054794,120]
[319517148,1710816644931,-500.0,0.00054794,120]
[319517149,1710816644940,-500.0,0.00054794,120]
[319517150,1710816644949,-500.0,0.00054794,120]
[319517151,1710816644959,-500.0,0.00054794,120]
[319517152,1710816644968,-610.69,0.00054794,120]
[319517153,1710816644978,-500.0,0.00054794,120]
[319517154,1710816644987,-200.0,0.00054794,120]
[319517155,1710816644996,-500.0,0.00054794,120]
[319517156,1710816645005,-554.46,0.00054794,120]
[319517157,1710816645015,-500.0,0.00054794,120]
[319517158,1710816645024,-500.0,0.00054794,120]
[319517159,1710816645033,-500.0,0.00054794,120]
[319517160,1710816645043,-500.0,0.00054794,7]
[319517161,1710816645053,-500.0,0.00054794,120]
[319517162,1710816645063,-500.64769097,0.00054794,120]
[319517163,1710816645072,-1153.93,0.00054794,120]
[319517164,1710816645081,-919.7,0.00054794,120]
[319517165,1710816645090,-500.0,0.00054794,120]
[319517166,1710816645099,-500.0,0.00054794,120]
[319517167,1710816645109,-500.0,0.00054794,120]
[319517168,1710816645118,-361.10544914,0.00054794,120]
[319517169,1710816645132,-500.0,0.00054794,120]
[319517170,1710816645142,-1297.21,0.00054794,120]
[319517171,1710816645151,-911.58,0.00054794,120]
[319517172,1710816645160,-500.0,0.00054794,120]
[319517173,1710816645169,-500.0,0.00054794,120]
[319517174,1710816645178,-500.0,0.00054794,120]
[319517175,1710816645187,-572.42,0.00054794,120]
[319517176,1710816645197,-500.0,0.00054794,120]
[319517177,1710816645206,-592.38,0.00054794,120]
[319517178,1710816645215,-500.0,0.00054794,120]
[319517179,1710816645224,-535.1,0.00054794,120]
[319517180,1710816645233,-500.0,0.00054794,120]
[319517181,1710816645242,-1045.9,0.00054794,120]
[319517182,1710816645251,-500.0,0.00054794,120]
[319517183,1710816645261,-1526.27,0.00054794,120]
[319517184,1710816645270,-1767.4,0.00054794,120]
[319517185,1710816645279,-500.0,0.00054794,120]
[319517186,1710816645288,-500.0,0.00054794,120]
[319517187,1710816645298,-500.0,0.00054794,120]
[319517188,1710816645308,-500.0,0.00054794,120]
[319517189,1710816645317,-1012.67,0.00054794,120]
[319517190,1710816645327,-560.43,0.00054794,120]
[319517191,1710816645337,-500.0,0.00054794,120]
[319517192,1710816645346,-607.38,0.00054794,120]
[319517193,1710816645355,-500.0,0.00054794,120]
[319517194,1710816645364,-1374.8,0.00054794,120]
[319517195,1710816645377,-583.93,0.00054794,120]
[319517196,1710816645387,-500.0,0.00054794,120]
[319517197,1710816645397,-500.0,0.00054794,120]
[319517198,1710816645406,-1431.22,0.00054794,120]
[319517199,1710816645416,-500.0,0.00054794,120]
[319517200,1710816645425,-500.0,0.00054794,120]
[319517201,1710816645435,-500.0,0.00054794,120]
[319517202,1710816645444,-500.0,0.00054794,120]
[319517203,1710816645454,-500.0,0.00054794,120]
[319517204,1710816645463,-595.71,0.00054794,120]
[319517205,1710816645472,-500.0,0.00054794,120]
[319517206,1710816645481,-500.0,0.00054794,120]
[319517207,1710816645491,-504.83113819,0.00054794,120]
[319517208,1710816645500,-500.0,0.00054794,120]
[319517209,1710816645509,-500.0,0.00054794,120]
[319517210,1710816645519,-316.1735794,0.00054794,120]
[319517211,1710816645528,-500.0,0.00054794,120]
[319517212,1710816645538,-500.0,0.00054794,120]
[319517213,1710816645548,-500.0,0.00054794,120]
[319517214,1710816645558,-1512.13,0.00054794,120]
[319517215,1710816645567,-500.0,0.00054794,120]
[319517216,1710816645578,-1577.33,0.00054794,120]
[319517217,1710816645591,-500.0,0.00054794,120]
[319517218,1710816645600,-500.0,0.00054794,120]
[319517219,1710816645610,-552.33,0.00054794,120]
[319517220,1710816645620,-500.0,0.00054794,120]
[319517221,1710816645636,-500.0,0.00054794,120]
[319517222,1710816645646,-500.0,0.00054794,120]
[319517223,1710816645655,-1127.99,0.00054794,120]
[319517224,1710816645665,-500.0,0.00054794,120]
[319517225,1710816645676,-500.0,0.00054794,120]
[319517226,1710816645686,-610.6,0.00054794,120]
[319517227,1710816645695,-831.07,0.00054794,120]
[319517228,1710816645705,-714.49,0.00054794,120]
[319517229,1710816645714,-788.32,0.00054794,120]
[319517230,1710816645724,-493.27318456,0.00054794,30]
[319517231,1710816645733,-918.43,0.00054794,120]
[319517232,1710816645742,-502.82717718,0.00054794,120]
[319517233,1710816645751,-500.0,0.00054794,120]
[319517234,1710816645760,-500.0,0.00054794,120]
[319517235,1710816645770,-500.0,0.00054794,120]
[319517236,1710816645779,-500.0,0.00054794,120]
[319517237,1710816645788,-500.0,0.00054794,120]
[319517238,1710816645797,-500.0,0.00054794,120]
[319517239,1710816645806,-500.0,0.00054794,120]
[319517240,1710816645815,-500.0,0.00054794,120]
[319517241,1710816645825,-500.0,0.00054794,120]
[319517242,1710816645834,-500.0,0.00054794,120]
[319517243,1710816645844,-500.0,0.00054794,120]
[319517244,1710816645853,-500.0,0.00054794,120]
[319517245,1710816645862,-500.0,0.00054794,120]
[319517246,1710816645871,-599.74,0.00054794,120]
[319517247,1710816645886,-1306.0,0.00054794,120]
[319517248,1710816645895,-500.0,0.00054794,120]
[319517249,1710816645905,-500.0,0.00054794,120]
[319517250,1710816645914,-500.0,0.00054794,120]
[319517251,1710816645923,-500.0,0.00054794,120]
[319517252,1710816645933,-500.0,0.00054794,120]
[319517253,1710816645942,-524.31,0.00054794,120]
[319517254,1710816645952,-500.0,0.00054794,120]
[319517255,1710816645962,-1461.71,0.00054794,120]
[319517256,1710816645972,-500.0,0.00054794,120]
[319517257,1710816645981,-500.0,0.00054794,120]
[319517258,1710816645991,-500.0,0.00054794,120]
[319517259,1710816646000,-500.0,0.00054794,120]
[319517260,1710816646011,-1526.31,0.00054794,120]
[319517261,1710816646020,-157.0674812,0.00054794,120]
[319517262,1710816646030,-500.0,0.00054794,120]
[319517263,1710816646039,-741.15,0.00054794,120]
[319517264,1710816646048,-195.72485999,0.00054794,120]
[319517265,1710816646058,-500.0,0.00054794,120]
[319517266,1710816646067,-500.0,0.00054794,120]
[319517267,1710816646075,-500.0,0.00054794,120]
[319517268,1710816646085,-500.0,0.00054794,120]
[319517269,1710816646095,-1887.23,0.00054794,120]
[319517270,1710816646104,-500.0,0.00054794,120]
[319517271,1710816646114,-500.0,0.00054794,120]
[319517272,1710816646127,-648.6,0.00054794,120]
[319517273,1710816646137,-500.0,0.00054794,120]
[319517274,1710816646147,-693.24,0.00054794,120]
[319517275,1710816646157,-640.56535441,0.00054794,120]
[319517277,1710816646166,-818.31,0.00054794,120]
[319517278,1710816646176,-500.0,0.00054794,120]
[319517279,1710816646185,-500.0,0.00054794,120]
[319517280,1710816646195,-500.0,0.00054794,120]
[319517281,1710816646205,-500.0,0.00054794,120]
[319517282,1710816646215,-500.43460197,0.00054794,120]
[319517285,1710816646226,-598.49327366,0.00054794,120]
[319517289,1710816646235,-637.83,0.00054794,120]
[319517292,1710816646245,-500.0,0.00054794,120]
[319517294,1710816646255,-500.0,0.00054794,120]
[319517296,1710816646265,-513.0,0.00054794,120]
[319517298,1710816646275,-970.57,0.00054794,120]
[319517300,1710816646285,-1031.63,0.00054794,120]
[319517302,1710816646294,-2922.94,0.00054794,120]
[319517304,1710816646303,-500.0,0.00054794,120]
[319517306,1710816646312,-1321.17,0.00054794,120]
[319517308,1710816646322,-500.0,0.00054794,120]
[319517310,1710816646331,-500.0,0.00054794,120]
[319517312,1710816646341,-500.0,0.00054794,120]
[319517314,1710816646350,-500.0,0.00054794,120]
[319517316,1710816646359,-500.0,0.00054794,120]
[319517318,1710816646370,-522.09,0.00054794,120]
[319517320,1710816646383,-500.0,0.00054794,120]
[319517322,1710816646392,-2000.0,0.00054794,120]
[319517324,1710816646401,-500.0,0.00054794,120]
[319517326,1710816646410,-427.00825429,0.00054794,120]
[319517328,1710816646420,-500.0,0.00054794,120]
[319517330,1710816646430,-869.32,0.00054794,120]
[319517332,1710816646439,-500.0,0.00054794,120]
[319517335,1710816646449,-2121.34,0.00054794,120]
[319517336,1710816646458,-500.0,0.00054794,120]
[319517337,1710816646468,-500.0,0.00054794,120]
[319517338,1710816646477,-500.0,0.00054794,120]
[319517339,1710816646486,-500.0,0.00054794,120]
[319517340,1710816646496,-637.23,0.00054794,120]
[319517341,1710816646506,-500.0,0.00054794,120]
[319517342,1710816646516,-500.0,0.00054794,120]
[319517343,1710816646526,-500.0,0.00054794,120]
[319517344,1710816646536,-500.0,0.00054794,120]
[319517345,1710816646548,-500.0,0.00054794,120]
[319517346,1710816646559,-500.0,0.00054794,120]
[319517347,1710816646569,-500.0,0.00054794,120]
[319517348,1710816646579,-612.72,0.00054794,120]
[319517349,1710816646592,-500.0,0.00054794,120]
[319517350,1710816646601,-1105.38,0.00054794,120]
[319517351,1710816646611,-505.30881829,0.00054794,120]
[319517352,1710816646622,-546.63,0.00054794,120]
[319517353,1710816646639,-500.0,0.00054794,120]
[319517354,1710816646649,-500.0,0.00054794,120]
[319517355,1710816646659,-500.0,0.00054794,120]
[319517356,1710816646669,-500.0,0.00054794,120]
[319517357,1710816646678,-501.95,0.00054794,120]
[319517358,1710816646688,-1720.8,0.00054794,120]
[319517359,1710816646697,-500.0,0.00054794,120]
[319517360,1710816646706,-515.79,0.00054794,120]
[319517361,1710816646716,-501.32,0.00054794,120]
[319517362,1710816646725,-709.88,0.00054794,120]
[319517363,1710816646735,-566.68014793,0.00054794,120]
[319517364,1710816646744,-567.26,0.00054794,120]
[319517365,1710816646754,-527.74,0.00054794,120]
[319517366,1710816646763,-500.0,0.00054794,120]
[319517367,1710816646773,-500.0,0.00054794,120]
[319517368,1710816646782,-500.0,0.00054794,120]
[319517369,1710816646792,-500.0,0.00054794,120]
[319517370,1710816646801,-500.0,0.00054794,120]
[319517371,1710816646811,-500.0,0.00054794,120]
[319517372,1710816646820,-500.0,0.00054794,120]
[319517373,1710816646830,-500.0,0.00054794,120]
[319517374,1710816646839,-500.0,0.00054794,120]
[319517375,1710816646848,-500.0,0.00054794,120]
[319517376,1710816646858,-500.0,0.00054794,120]
[319517377,1710816646867,-500.0,0.00054794,120]
[319517378,1710816646881,-1943.78,0.00054794,120]
[319517379,1710816646890,-500.0,0.00054794,120]
[319517380,1710816646899,-500.0,0.00054794,120]
[319517381,1710816646908,-500.0,0.00054794,120]
[319517382,1710816646918,-500.0,0.00054794,120]
[319517383,1710816646927,-514.72,0.00054794,120]
[319517384,1710816646938,-246.54550229,0.00054794,120]
[319517385,1710816646947,-500.0,0.00054794,120]
[319517386,1710816646956,-500.0,0.00054794,120]
[319517387,1710816646966,-500.0,0.00054794,120]
[319517388,1710816646974,-500.0,0.00054794,120]
[319517389,1710816646983,-500.0,0.00054794,120]
[319517390,1710816646992,-500.0,0.00054794,120]
[319517391,1710816647002,-716.95,0.00054794,120]
[319517392,1710816647011,-500.0,0.00054794,120]
[319517393,1710816647020,-1080.63,0.00054794,120]
[319517394,1710816647029,-500.0,0.00054794,120]
[319517395,1710816647038,-655.93,0.00054794,120]
[319517396,1710816647047,-642.27758358,0.00054794,120]
[319517397,1710816647056,-500.0,0.00054794,120]
[319517398,1710816647066,-500.0,0.00054794,120]
[319517399,1710816647075,-500.0,0.00054794,120]
[319517400,1710816647150,-500.0,0.00054794,120]
[319517401,1710816647159,-502.08415409,0.00054794,120]
[319517402,1710816647168,-501.29510449,0.00054794,120]
[319517403,1710816647178,-500.0,0.00054794,120]
[319517404,1710816647187,-500.0,0.00054794,120]
[319517405,1710816647197,-500.0,0.00054794,120]
[319517406,1710816647207,-760.02,0.00054794,120]
[319517407,1710816647216,-500.0,0.00054794,120]
[319517408,1710816647225,-500.0,0.00054794,120]
[319517409,1710816647235,-500.0,0.00054794,120]
[319517410,1710816647244,-502.70713624,0.00054794,120]
[319517411,1710816647253,-500.0,0.00054794,120]
[319517412,1710816647262,-684.92,0.00054794,120]
[319517413,1710816647272,-500.0,0.00054794,120]
[319517414,1710816647282,-500.0,0.00054794,120]
[319517415,1710816647291,-1094.39,0.00054794,120]
[319517416,1710816647300,-500.0,0.00054794,120]
[319517417,1710816647310,-500.0,0.00054794,120]
[319517418,1710816647320,-500.0,0.00054794,120]
[319517419,1710816647329,-500.0,0.00054794,120]
[319517420,1710816647339,-500.0,0.00054794,120]
[319517421,1710816647349,-500.0,0.00054794,120]
[319517422,1710816647358,-509.02626699,0.00054794,120]
[319517423,1710816647367,-500.0,0.00054794,120]
[319517424,1710816647378,-500.0,0.00054794,120]
[319517425,1710816647388,-500.0,0.00054794,120]
[319517426,1710816647398,-500.0,0.00054794,120]
[319517427,1710816647407,-1759.89,0.00054794,120]
[319517428,1710816647417,-500.0,0.00054794,120]
[319517429,1710816647427,-500.0,0.00054794,120]
[319517430,1710816647436,-500.0,0.00054794,120]
[319517431,1710816647445,-944.26,0.00054794,120]
[319517432,1710816647454,-500.0,0.00054794,120]
[319517433,1710816647463,-500.0,0.00054794,120]
[319517434,1710816647473,-765.43,0.00054794,120]
[319517435,1710816647482,-500.0,0.00054794,120]
[319517436,1710816647492,-656.09,0.00054794,120]
[319517437,1710816647501,-500.0,0.00054794,120]
[319517438,1710816647510,-500.0,0.00054794,120]
[319517439,1710816647519,-500.0,0.00054794,120]
[319517440,1710816647528,-500.0,0.00054794,120]
[319517441,1710816647538,-4196.38,0.00054794,120]
[319517442,1710816647549,-500.0,0.00054794,120]
[319517443,1710816647558,-187.06316875,0.00054794,120]
[319517444,1710816647567,-500.0,0.00054794,120]
[319517445,1710816647577,-500.0,0.00054794,120]
[319517446,1710816647590,-500.0,0.00054794,120]
[319517447,1710816647599,-2023.71,0.00054794,120]
[319517448,1710816647608,-500.0,0.00054794,120]
[319517449,1710816647618,-503.12425431,0.00054794,120]
[319517450,1710816647628,-500.0,0.00054794,120]
[319517451,1710816647638,-739.07,0.00054794,120]
[319517452,1710816647647,-502.19808906,0.00054794,120]
[319517453,1710816647656,-2172.1,0.00054794,120]
[319517454,1710816647666,-500.0,0.00054794,120]
[319517455,1710816647676,-743.52,0.00054794,120]
[319517456,1710816647685,-501.28625901,0.00054794,120]
[319517457,1710816647695,-500.0,0.00054794,120]
[319517458,1710816647706,-12497.49,0.00054794,120]
[319517459,1710816647715,-500.0,0.00054794,120]
[319517460,1710816647725,-500.0,0.00054794,120]
[319517461,1710816647735,-500.0,0.00054794,120]
[319517462,1710816647744,-193.35500736,0.00054794,120]
[319517463,1710816647753,-500.0,0.00054794,120]
[319517464,1710816647763,-1157.2,0.00054794,120]
[319517465,1710816647772,-500.0,0.00054794,120]
[319517466,1710816647782,-500.0,0.00054794,120]
[319517467,1710816647791,-698.96,0.00054794,120]
[319517468,1710816647800,-500.0,0.00054794,120]
[319517469,1710816647809,-500.0,0.00054794,120]
[319517470,1710816647818,-500.0,0.00054794,120]
[319517471,1710816647828,-2155.41,0.00054794,120]
[319517472,1710816647837,-500.0,0.00054794,120]
[319517473,1710816647847,-500.0,0.00054794,120]
[319517474,1710816647856,-500.0,0.00054794,120]
[319517475,1710816647865,-907.24,0.00054794,120]
[319517476,1710816647874,-500.0,0.00054794,120]
[319517477,1710816647885,-500.0,0.00054794,120]
[319517478,1710816647895,-500.0,0.00054794,120]
[319517479,1710816647904,-500.0,0.00054794,120]
[319517480,1710816647913,-847.26,0.00054794,120]
[319517481,1710816647922,-500.0,0.00054794,120]
[319517482,1710816647931,-500.0,0.00054794,120]
[319517483,1710816647940,-1245.39,0.00054794,120]
[319517484,1710816647949,-500.0,0.00054794,120]
[319517485,1710816647958,-13017.1,0.00054794,120]
[319517486,1710816647967,-427.09625199,0.00054794,120]
[319517487,1710816647977,-500.0,0.00054794,120]
[319517488,1710816647986,-500.0,0.00054794,120]
[319517489,1710816647996,-500.0,0.00054794,120]
[319517490,1710816648005,-500.0,0.00054794,120]
[319517491,1710816648014,-500.0,0.00054794,120]
[319517492,1710816648024,-1318.32,0.00054794,120]
[319517493,1710816648033,-502.97853512,0.00054794,120]
[319517494,1710816648042,-339.23413702,0.00054794,120]
[319517495,1710816648053,-938.46,0.00054794,120]
[319517496,1710816648062,-496.79039016,0.00054794,120]
[319517497,1710816648071,-500.0,0.00054794,120]
[319517498,1710816648080,-500.0,0.00054794,120]
[319517499,1710816648089,-566.63,0.00054794,120]
[319517500,1710816648098,-500.0,0.00054794,120]
[319517501,1710816648107,-500.0,0.00054794,120]
[319517502,1710816648116,-500.0,0.00054794,120]
[319517503,1710816648125,-500.0,0.00054794,120]
[319517504,1710816648137,-500.0,0.00054794,120]
[319517505,1710816648146,-1182.03,0.00054794,120]
[319517506,1710816648156,-500.0,0.00054794,120]
[319517507,1710816648165,-500.0,0.00054794,120]
[319517508,1710816648174,-1350.89,0.00054794,120]
[319517509,1710816648183,-500.0,0.00054794,120]
[319517510,1710816648193,-500.0,0.00054794,120]
[319517511,1710816648202,-500.0,0.00054794,120]
[319517512,1710816648211,-854.11,0.00054794,120]
[319517513,1710816648221,-500.0,0.00054794,120]
[319517514,1710816648230,-2269.8,0.00054794,120]
[319517515,1710816648239,-500.0,0.00054794,120]
[319517516,1710816648249,-500.0,0.00054794,120]
[319517517,1710816648258,-500.0,0.00054794,120]
[319517518,1710816648267,-500.0,0.00054794,120]
[319517519,1710816648277,-500.0,0.00054794,120]
[319517520,1710816648286,-500.0,0.00054794,120]
[319517521,1710816648295,-500.0,0.00054794,120]
[319517522,1710816648304,-587.66,0.00054794,120]
[319517523,1710816648313,-500.0,0.00054794,120]
[319517524,1710816648322,-1322.12,0.00054794,120]
[319517525,1710816648332,-500.0,0.00054794,120]
[319517526,1710816648342,-500.0,0.00054794,120]
[319517527,1710816648352,-500.0,0.00054794,120]
[319517528,1710816648362,-500.0,0.00054794,120]
[319517529,1710816648371,-500.0,0.00054794,120]
[319517530,1710816648385,-807.76,0.00054794,120]
[319517531,1710816648394,-2079.77,0.00054794,120]
[319517532,1710816648405,-500.0,0.00054794,120]
[319517533,1710816648416,-500.0,0.00054794,120]
[319517534,1710816648425,-500.0,0.00054794,120]
[319517535,1710816648435,-1512.08,0.00054794,120]
[319517536,1710816648444,-500.0,0.00054794,120]
[319517537,1710816648454,-541.51400498,0.00054794,120]
[319517538,1710816648465,-500.0,0.00054794,120]
[319517539,1710816648475,-500.0,0.00054794,120]
[319517540,1710816648485,-500.0,0.00054794,120]
[319517541,1710816648495,-500.0,0.00054794,120]
[319517542,1710816648505,-571.58634273,0.00054794,120]
[319517543,1710816648514,-500.0,0.00054794,120]
[319517544,1710816648524,-567.24,0.00054794,120]